bitfinex/quotes_SOLUSD_20250425
["timestamp","ask_amount","ask_price","bid_price","bid_amount"]
[1745580102268,7.61752295,153.85,153.81,7.61752295]
[1745580103479,14.11707464,153.86,153.81,14.11889079]
[1745580104071,4.85780338,153.85,153.81,14.11889079]
[1745580104847,4.85780338,153.84,153.81,7.61752295]
[1745580105659,4.85780338,153.83,153.81,7.61752295]
[1745580105858,4.85780338,153.83,153.81,14.11901332]
[1745580106976,7.61752295,153.85,153.81,7.61752295]
[1745580107176,7.61752295,153.85,153.81,14.11884621]
[1745580107365,14.11707464,153.86,153.82,7.61752295]
[1745580107755,4.86311365,153.85,153.82,7.61752295]
[1745580108655,4.86311365,153.84,153.82,7.61752295]
[1745580108863,4.80325777,153.84,153.82,7.61752295]
[1745580109358,7.61752295,153.85,153.81,7.61752295]
[1745580109952,14.11738318,153.85,153.81,7.61752295]
[1745580111164,7.61752295,153.85,153.81,7.61752295]
[1745580111367,7.61752295,153.84,153.8,1.619]
[1745580111566,7.61752295,153.84,153.79,6.50223323]
[1745580111766,7.61752295,153.84,153.8,7.61752295]
[1745580112185,14.11739519,153.85,153.8,7.61752295]
[1745580112580,14.11739519,153.85,153.8,14.11946722]
[1745580112774,7.61752295,153.84,153.8,14.11946722]
[1745580113079,7.61752295,153.84,153.78,6.5027962]
[1745580113277,7.61752295,153.82,153.78,14.12031915]
[1745580113490,6.49987224,153.85,153.79,7.61752295]
[1745580113685,7.61752295,153.84,153.8,7.61752295]
[1745580115162,7.61752295,153.84,153.8,14.11945235]
[1745580115877,7.61752295,153.86,153.81,7.61752295]
[1745580116076,7.61752295,153.87,153.83,7.61752295]
[1745580117482,7.61752295,153.87,153.82,14.11858945]
[1745580117687,14.11658505,153.87,153.82,7.61752295]
[1745580118786,14.11658505,153.87,153.82,14.11856831]
[1745580119979,7.61752295,153.87,153.82,14.11856831]
[1745580120189,33.61752295,153.88,153.83,7.61752295]
[1745580120562,7.61752295,153.87,153.83,7.61752295]
[1745580121199,14.11667407,153.87,153.83,7.61752295]
[1745580121364,14.11667407,153.87,153.82,14.11856831]
[1745580121568,12.48255045,153.86,153.82,14.11856831]
[1745580121884,12.48255045,153.86,153.82,6.50104536]
[1745580122268,7.61752295,153.85,153.81,7.61752295]
[1745580122473,7.61752295,153.85,153.81,14.1190433]
[1745580122674,4.8650275,153.84,153.81,14.1190433]
[1745580123566,4.8650275,153.83,153.81,14.1190433]
[1745580124168,4.8650275,153.82,153.81,14.1190433]
[1745580127787,7.61752295,153.87,153.81,14.1190433]
[1745580127976,7.61752295,153.87,153.82,7.61752295]
[1745580128177,7.61752295,153.84,153.8,7.61752295]
[1745580128386,7.61752295,153.83,153.77,0.03]
[1745580128580,7.61752295,153.82,153.78,14.12031915]
[1745580128783,7.61752295,153.82,153.78,6.5027962]
[1745580128978,4.86552559,153.81,153.78,14.12031915]
[1745580129702,4.86552559,153.8,153.78,14.12031915]
[1745580130389,7.61752295,153.82,153.78,14.12031915]
[1745580131101,7.61752295,153.89,153.82,6.50110518]
[1745580131271,17.76922733,153.91,153.86,7.61752295]
[1745580131477,17.76922733,153.91,153.87,7.61752295]
[1745580132970,7.68052295,153.91,153.87,7.61752295]
[1745580133190,7.68052295,153.91,153.86,14.11675104]
[1745580134405,7.61752295,153.9,153.86,14.11675104]
[1745580135697,4.86297307,153.89,153.86,14.11675104]
[1745580136277,4.86297307,153.88,153.86,14.11675104]
[1745580136686,4.86297307,153.88,153.87,7.61752295]
[1745580138297,4.86297307,153.88,153.84,7.61752295]
[1745580138298,12.48049602,153.88,153.84,7.61752295]
[1745580138477,12.48049602,153.87,153.83,7.61752295]
[1745580138682,7.61752295,153.86,153.81,14.11889132]
[1745580139304,7.61752295,153.86,153.82,7.61752295]
[1745580139511,4.86297307,153.85,153.82,7.61752295]
[1745580140098,4.86297307,153.85,153.82,14.11858168]
[1745580140796,4.86297307,153.84,153.82,14.11858168]
[1745580141615,4.86297307,153.83,153.82,14.11858168]
[1745580145126,4.86297307,153.83,153.82,15.41858897]
[1745580145430,0.063,153.91,153.82,31.8135135]
[1745580145630,7.68052295,153.91,153.87,7.61752295]
[1745580147205,7.68052295,153.91,153.87,14.1162057]
[1745580147716,0.063,153.91,153.87,14.1162057]
[1745580147921,0.063,153.91,153.88,7.61752295]
[1745580149226,0.063,153.91,153.88,6.49831463]
[1745580149426,0.063,153.91,153.88,14.11583758]
[1745580149803,0.063,153.91,153.89,7.61752295]
[1745580150223,0.063,153.91,153.9,7.61752295]
[1745580151517,0.063,153.91,153.9,14.11524874]
[1745580152221,7.68052295,153.91,153.86,7.61752295]
[1745580152418,7.61752295,153.9,153.86,7.61752295]
[1745580152659,7.68052295,153.91,153.87,7.61752295]
[1745580154247,7.68052295,153.91,153.87,14.1163965]
[1745580154811,0.063,153.91,153.88,7.61752295]
[1745580155011,0.063,153.91,153.87,6.49887355]
[1745580155012,0.063,153.91,153.9,7.61752295]
[1745580156645,0.063,153.91,153.9,14.11524874]
[1745580157012,0.063,153.91,153.89,14.11556593]
[1745580157347,7.68052295,153.91,153.87,7.61752295]
[1745580158140,7.68052295,153.91,153.86,7.61752295]
[1745580158337,7.68052295,153.91,153.88,7.61752295]
[1745580158338,0.063,153.91,153.88,7.61752295]
[1745580158544,0.063,153.91,153.89,7.61752295]
[1745580158850,0.063,153.91,153.9,14.11524874]
[1745580160318,0.063,153.91,153.9,17.07835654]
[1745580160742,1e-08,153.91,153.9,17.07835654]
[1745580161136,1e-08,153.91,153.9,35.7280054]
[1745580163446,1e-08,153.91,153.9,39.98960671]
[1745580164022,1e-08,153.91,153.9,51.86873097]
[1745580164547,0.063,153.94,153.93,0.14216157]
[1745580164548,1e-08,153.94,153.93,0.14216157]
[1745580164768,1e-08,153.94,153.93,13.31998169]
[1745580166324,1e-08,153.94,153.93,13.17782012]
[1745580166547,1e-08,153.94,153.93,19.67427954]
[1745580167344,1e-08,153.94,153.93,19.81644111]
[1745580168052,1e-08,153.94,153.93,19.67427954]
[1745580171052,1e-08,153.94,153.93,18.37558368]
[1745580173267,1e-08,153.94,153.93,6.49645942]
[1745580173450,1e-08,153.94,153.93,18.37558368]
[1745580175753,1e-08,153.94,153.93,6.49645942]
[1745580177276,1e-08,153.94,153.93,18.37558368]
[1745580178549,1e-08,153.94,153.93,18.51774525]
[1745580183378,1e-08,153.94,153.93,18.37558368]
[1745580184287,1e-08,153.94,153.92,6.49658442]
[1745580185271,1e-08,153.94,153.92,18.37570868]
[1745580186787,1e-08,153.94,153.92,6.49658442]
[1745580187179,1e-08,153.94,153.93,11.87912426]
[1745580187485,1e-08,153.94,153.93,7.6039715]
[1745580189367,1e-08,153.94,153.93,18.37443859]
[1745580192959,0.063,153.96,153.95,26.0]
[1745580193293,1e-08,153.96,153.95,57.96843652]
[1745580193460,0.063,153.98,153.96,0.14216157]
[1745580193664,0.063,153.99,153.98,0.14216157]
[1745580193865,0.063,153.99,153.98,12.02014074]
[1745580194565,0.063,153.99,153.98,18.51449065]
[1745580198801,1e-08,154.0,153.98,49.04211868]
[1745580198982,1e-08,154.0,153.99,25.19630914]
[1745580199182,1e-08,154.0,153.99,38.53630914]
[1745580200094,1e-08,154.0,153.99,45.03023731]
[1745580201080,1e-08,154.0,153.99,33.15225814]
[1745580202307,1e-08,154.0,153.99,33.01009657]
[1745580202684,1e-08,154.0,153.99,33.15225814]
[1745580203192,1e-08,154.0,153.99,33.01009657]
[1745580203768,1e-08,154.0,153.99,19.67009657]
[1745580205194,1e-08,154.0,153.99,19.81225814]
[1745580207184,1e-08,154.0,153.99,19.67009657]
[1745580211100,1e-08,154.0,153.99,7.7921174]
[1745580211320,1e-08,154.0,153.99,15.38907365]
[1745580213705,1e-08,154.0,153.99,7.7921174]
[1745580213886,1e-08,154.0,153.99,15.38907365]
[1745580217008,1e-08,154.0,153.99,7.7921174]
[1745580217207,1e-08,154.0,153.99,15.38907365]
[1745580225129,7.44195626,154.07,153.99,24.02693784]
[1745580225319,50.6436823,154.08,154.03,7.59695625]
[1745580225520,7.59695625,154.07,154.03,7.59695625]
[1745580226630,4.84095559,154.06,154.03,7.59695625]
[1745580227130,4.84095559,154.06,154.04,6.4918203]
[1745580227524,4.84095559,154.06,154.03,14.08901169]
[1745580227904,4.84095559,154.06,154.04,7.59695625]
[1745580228611,4.84095559,154.07,154.04,7.59695625]
[1745580229431,4.84095559,154.07,154.05,6.49139889]
[1745580229729,50.6436823,154.08,154.05,6.49139889]
[1745580230111,50.6436823,154.08,154.04,14.08862181]
[1745580230309,7.59695625,154.07,154.03,7.59695625]
[1745580230519,7.59695625,154.06,154.02,14.08961954]
[1745580230716,7.59695625,154.03,154.0,6.49326]
[1745580232737,7.59695625,154.04,154.0,6.49326]
[1745580233037,4.84985351,154.03,154.0,6.49326]
[1745580233525,4.84985351,154.03,154.0,14.09021625]
[1745580233727,4.84985351,154.03,154.01,7.59695625]
[1745580234033,7.59695625,154.06,154.02,7.59695625]
[1745580234245,43.04672605,154.08,154.02,7.59695625]
[1745580234403,7.59695625,154.06,154.02,7.59695625]
[1745580234833,4.85354264,154.05,154.02,7.59695625]
[1745580235345,4.85354264,154.05,154.03,7.59695625]
[1745580235524,4.85354264,154.05,154.04,7.59695625]
[1745580235716,4.85354264,154.05,154.04,14.08877655]
[1745580237723,26.0,154.07,154.04,14.08877655]
[1745580238338,33.59695625,154.07,154.04,6.4918203]
[1745580238949,29.70672605,154.08,154.06,7.59695625]
[1745580239610,29.70672605,154.08,154.07,6.49055624]
[1745580241221,29.70672605,154.08,154.05,6.49139889]
[1745580241543,29.70672605,154.08,154.05,14.08835514]
[1745580241929,29.70672605,154.08,154.05,6.49139889]
[1745580242228,29.70672605,154.08,154.05,14.08835514]
[1745580243114,29.70672605,154.08,154.05,6.49139889]
[1745580243716,29.70672605,154.08,154.05,14.08835514]
[1745580244748,29.70672605,154.08,154.05,6.49139889]
[1745580244913,29.70672605,154.08,154.05,14.08835514]
[1745580245739,29.70672605,154.08,154.05,6.49139889]
[1745580245928,37.3036823,154.08,154.05,6.49139889]
[1745580246121,37.3036823,154.08,154.03,7.59695625]
[1745580246322,7.59695625,154.04,154.0,6.49350649]
[1745580246641,7.59695625,154.04,154.0,14.09046274]
[1745580249145,7.59695625,154.05,154.0,14.09046274]
[1745580249349,7.59695625,154.05,154.01,7.59695625]
[1745580249729,7.59695625,154.05,154.02,6.49266329]
[1745580251550,7.59695625,154.06,154.02,14.08961954]
[1745580252058,29.70672605,154.08,154.05,7.59695625]
[1745580252643,29.70672605,154.08,154.06,7.59695625]
[1745580254150,29.70672605,154.08,154.05,7.59695625]
[1745580256252,29.70672605,154.08,154.06,6.49097754]
[1745580256834,7.59695625,154.07,154.03,6.49224177]
[1745580257039,29.70672605,154.08,154.05,7.59695625]
[1745580258346,7.59695625,154.06,154.01,6.49308486]
[1745580258557,7.59695625,154.02,153.98,0.063]
[1745580259043,7.59695625,154.01,153.98,0.063]
[1745580259368,7.59695625,153.99,153.98,0.063]
[1745580260259,18.64964886,154.02,153.98,0.063]
[1745580260443,7.59695625,154.0,153.98,0.063]
[1745580260633,7.59695625,153.99,153.98,0.063]
[1745580261344,11.87875409,153.99,153.98,0.063]
[1745580262059,11.87875409,154.0,153.98,0.063]
[1745580262771,11.87875409,153.99,153.98,0.063]
[1745580265171,11.87875409,154.0,153.98,0.063]
[1745580265371,1.5823,154.06,153.99,11.87875409]
[1745580265544,11.87875409,154.04,154.0,11.87875409]
[1745580266454,11.87875409,154.05,154.01,18.37183895]
[1745580266656,26.0,154.07,154.04,11.87875409]
[1745580266868,41.58548014,154.08,154.04,11.87875409]
[1745580267057,67.58548014,154.08,154.04,11.87875409]
[1745580267263,41.58548014,154.08,154.04,11.87875409]
[1745580267572,29.70672605,154.08,154.05,11.87875409]
[1745580267745,29.70672605,154.08,154.06,11.87875409]
[1745580268677,0.063,154.1,154.07,18.36931033]
[1745580268966,0.063,154.1,154.08,11.87875409]
[1745580270076,0.063,154.1,154.08,18.36875596]
[1745580270282,0.063,154.1,154.09,11.87875409]
[1745580270582,0.063,154.1,154.07,6.49042942]
[1745580270784,11.94175409,154.1,154.06,11.87875409]
[1745580271583,11.94175409,154.1,154.06,18.3696649]
[1745580272385,11.94175409,154.1,154.06,11.87875409]
[1745580272986,11.94175409,154.1,154.05,18.36981837]
[1745580272987,11.87875409,154.09,154.05,18.36981837]
[1745580273356,11.94175409,154.1,154.06,11.87875409]
[1745580274283,11.87875409,154.07,154.03,11.87875409]
[1745580274447,11.87875409,154.06,154.01,11.87875409]
[1745580275051,11.87875409,154.05,154.0,18.37226058]
[1745580276176,11.87875409,154.05,154.01,18.37157309]
[1745580280575,37.87875409,154.06,154.01,18.37157309]
[1745580285288,11.87875409,154.05,154.01,6.492819]
[1745580285659,11.87875409,154.05,154.01,18.37157309]
[1745580286288,37.87875409,154.06,154.01,18.37157309]
[1745580287275,7.59628594,154.06,154.01,14.08910494]
[1745580288277,7.59628594,154.05,154.01,14.08910494]
[1745580290412,7.59628594,154.09,154.04,7.59628594]
[1745580290711,7.59628594,154.09,154.05,7.59628594]
[1745580291800,33.59628594,154.09,154.05,14.08739357]
[1745580293008,33.59628594,154.09,154.05,6.49110763]
[1745580293184,33.59628594,154.09,154.05,14.08739357]
[1745580294220,26.0,154.09,154.05,14.08739357]
[1745580294511,33.59628594,154.09,154.05,14.08739357]
[1745580295615,33.59628594,154.09,154.05,6.49110763]
[1745580295818,33.59628594,154.09,154.05,14.08739357]
[1745580296419,26.0,154.09,154.05,14.08739357]
[1745580296626,26.0,154.09,154.06,7.59628594]
[1745580297616,7.59628594,154.08,154.04,7.59628594]
[1745580297822,7.59628594,154.08,154.03,14.08852771]
[1745580298007,7.59628594,154.08,154.04,7.59628594]
[1745580298625,33.59628594,154.09,154.05,14.08765122]
[1745580301322,26.0,154.09,154.05,14.08765122]
[1745580301529,33.59628594,154.09,154.05,14.08765122]
[1745580303224,7.59628594,154.07,154.04,6.49165817]
[1745580303523,7.59628594,154.07,154.03,7.59628594]
[1745580303908,7.59628594,154.08,154.04,7.59628594]
[1745580304338,7.59628594,154.05,154.01,6.49308486]
[1745580304618,7.59628594,154.04,154.0,14.08968105]
[1745580304832,7.59628594,154.05,154.0,14.08968105]
[1745580305129,7.59628594,154.05,154.01,7.59628594]
[1745580305530,7.59628594,154.05,154.01,14.08932148]
[1745580306201,6.49068963,154.07,154.01,14.08932148]
[1745580306432,7.59628594,154.05,154.01,14.08932148]
[1745580308306,7.59628594,154.05,153.98,1.6486]
[1745580308307,7.59628594,154.02,153.98,1.6486]
[1745580308540,7.59628594,154.01,153.98,6.55728847]
[1745580309037,7.59628594,154.01,153.98,0.063]
[1745580309708,18.79181043,154.05,153.98,0.063]
[1745580309907,7.59628594,154.0,153.98,0.063]
[1745580310431,7.59628594,154.01,153.98,0.063]
[1745580317538,7.59628594,154.04,154.0,7.59628594]
[1745580317731,7.59628594,154.04,153.98,0.063]
[1745580318048,7.59628594,154.04,153.99,7.59628594]
[1745580318752,7.59628594,154.03,154.0,6.49350649]
[1745580319625,25.14064264,154.06,154.0,14.08979243]
[1745580319626,18.64964886,154.06,154.0,14.08979243]
[1745580319828,7.59628594,154.04,154.0,14.08979243]
[1745580320028,18.64964886,154.07,154.01,7.59628594]
[1745580320331,7.59628594,154.06,154.01,7.59628594]
[1745580320841,18.64964886,154.07,154.02,6.49266329]
[1745580321047,33.59628594,154.06,154.02,6.49266329]
[1745580321652,7.59628594,154.05,154.02,6.49266329]
[1745580322153,7.59628594,154.05,154.01,6.49297604]
[1745580323256,33.59628594,154.06,154.01,14.08926198]
[1745580323559,26.0,154.06,154.01,14.08926198]
[1745580323740,7.59628594,154.05,154.01,14.08926198]
[1745580324560,7.59628594,154.05,154.01,6.49297604]
[1745580327154,33.59628594,154.06,154.01,7.59628594]
[1745580328259,33.59628594,154.06,154.02,6.49266329]
[1745580328442,8.01781148,154.08,154.03,7.59628594]
[1745580328443,7.59628594,154.08,154.03,7.59628594]
[1745580328768,7.59628594,154.09,154.04,7.59628594]
[1745580328951,18.71264886,154.1,154.05,7.59628594]
[1745580329144,7.59628594,154.09,154.05,7.59628594]
[1745580330438,7.65928594,154.1,154.06,7.59628594]
[1745580331960,0.063,154.1,154.06,7.59628594]
[1745580332167,7.65928594,154.1,154.06,7.59628594]
[1745580332761,7.59628594,154.08,154.02,16.23165822]
[1745580332974,7.59628594,154.08,154.04,7.59628594]
[1745580334163,0.063,154.1,154.05,7.59628594]
[1745580334476,0.063,154.1,154.06,7.59628594]
[1745580334630,0.063,154.1,154.04,22.72100841]
[1745580334631,0.063,154.1,154.08,7.59628594]
[1745580334837,0.063,154.1,154.07,7.59628594]
[1745580335131,0.063,154.1,154.06,7.59628594]
[1745580335357,7.65928594,154.1,154.06,7.59628594]
[1745580335564,0.063,154.1,154.07,7.59628594]
[1745580335772,0.063,154.1,154.09,7.59628594]
[1745580336073,0.063,154.1,154.09,14.08599974]
[1745580341256,0.063,154.1,154.09,15.38351868]
[1745580342254,0.063,154.1,154.09,14.08599974]
[1745580342451,0.063,154.1,154.09,6.4897138]
[1745580342757,0.063,154.1,154.09,14.08599974]
[1745580345650,0.063,154.1,154.09,15.38347993]
[1745580345845,0.063,154.1,154.09,15.5256415]
[1745580346064,0.03,154.14,154.09,31.749926]
[1745580346363,0.03,154.14,154.13,7.59628594]
[1745580346757,0.03,154.14,154.13,14.08431552]
[1745580346966,25.14751043,154.13,153.97,1.6072]
[1745580347180,18.64964886,154.03,153.97,0.063]
[1745580347469,7.59628594,153.99,153.97,0.063]
[1745580347854,21.39706972,153.99,153.97,0.063]
[1745580348458,7.59628594,154.0,153.97,0.063]
[1745580349269,26.0,154.01,153.97,0.063]
[1745580349456,13.17505763,154.0,153.97,0.063]
[1745580349967,30.52744183,153.99,153.97,0.063]
[1745580350773,11.87779297,153.99,153.97,0.063]
[1745580351150,1.29726466,154.0,153.97,0.063]
[1745580351443,13.17505763,154.0,153.97,0.063]
[1745580352071,11.87779297,153.99,153.97,0.063]
[1745580354777,1.29726466,154.0,153.97,0.063]
[1745580354952,13.17505763,154.0,153.97,0.063]
[1745580355370,11.87779297,153.99,153.97,0.063]
[1745580356675,18.37172114,153.99,153.97,0.063]
[1745580357068,11.87779297,153.99,153.97,0.063]
[1745580357399,18.37172114,153.99,153.97,0.063]
[1745580358180,37.02137,153.99,153.97,0.063]
[1745580363483,0.14216157,153.97,153.94,0.063]
[1745580363689,30.52744183,153.95,153.92,0.063]
[1745580363995,0.14216157,153.92,153.89,0.063]
[1745580364176,30.52744183,153.9,153.89,0.063]
[1745580365655,37.02516762,153.9,153.89,0.063]
[1745580365859,30.52744183,153.9,153.89,0.063]
[1745580367389,56.52744183,153.9,153.89,0.063]
[1745580368291,37.87779297,153.9,153.89,0.063]
[1745580368589,39.17505763,153.9,153.89,0.063]
[1745580368793,37.87779297,153.9,153.89,0.063]
[1745580370481,11.87779297,153.9,153.89,0.063]
[1745580370793,11.87779297,153.91,153.89,0.063]
[1745580371773,11.87779297,153.9,153.89,0.063]
[1745580372687,11.87779297,153.91,153.89,0.063]
[1745580373498,1.29726466,153.92,153.89,0.063]
[1745580373791,11.87779297,153.91,153.89,0.063]
[1745580374801,26.0,153.93,153.89,11.94079297]
[1745580374802,11.87779297,153.93,153.89,11.94079297]
[1745580375382,11.87779297,153.94,153.9,11.87779297]
[1745580375702,39.17505763,153.95,153.91,11.87779297]
[1745580375868,10.40629171,153.96,153.93,11.87779297]
[1745580376069,7.0313,154.04,153.95,11.87779297]
[1745580376070,11.87779297,153.99,153.95,11.87779297]
[1745580376309,13.17505763,153.98,153.94,11.87779297]
[1745580376499,13.17505763,153.98,153.95,6.49561545]
[1745580376886,11.87779297,153.97,153.95,6.49561545]
[1745580377999,11.87779297,153.98,153.95,6.49561545]
[1745580378296,11.87779297,153.99,153.95,34.61244706]
[1745580378501,37.87779297,154.0,153.97,6.4947717]
[1745580378672,11.87779297,154.01,153.97,18.37256467]
[1745580379175,11.87779297,154.0,153.97,6.4947717]
[1745580380210,11.87779297,153.98,153.97,6.4947717]
[1745580380377,11.87779297,153.98,153.93,6.49645942]
[1745580380580,11.87779297,153.96,153.93,6.49645942]
[1745580380807,11.87779297,153.97,153.93,34.61540096]
[1745580381279,1.29726466,154.01,153.95,11.87779297]
[1745580381504,11.87779297,153.99,153.95,11.87779297]
[1745580382136,11.87779297,153.97,153.93,34.61540096]
[1745580382705,11.87779297,153.98,153.95,6.49561545]
[1745580384743,11.87779297,153.97,153.95,6.49561545]
[1745580385040,11.87779297,153.96,153.95,6.49561545]
[1745580385828,11.87779297,153.96,153.92,6.49688149]
[1745580386008,11.87779297,153.95,153.92,22.73908523]
[1745580387732,11.87779297,153.93,153.92,6.49688149]
[1745580389243,11.87779297,153.93,153.9,6.49772579]
[1745580389405,11.87779297,153.91,153.9,6.49772579]
[1745580390622,11.87779297,153.93,153.9,6.49772579]
[1745580390932,11.87779297,153.93,153.9,22.74204027]
[1745580391346,11.87779297,153.92,153.9,6.49772579]
[1745580392538,11.87779297,153.92,153.89,0.063]
[1745580395841,11.87779297,153.91,153.89,0.063]
[1745580397759,11.87779297,153.92,153.89,0.063]
[1745580398424,11.87779297,153.93,153.89,0.063]
[1745580399024,11.87779297,153.92,153.89,0.063]
[1745580400442,11.87779297,153.93,153.89,11.94079297]
[1745580402048,11.87779297,153.93,153.9,6.49772579]
[1745580402970,11.87779297,153.94,153.9,18.37551876]
[1745580403132,27.29726466,153.95,153.91,11.87779297]
[1745580404456,39.17505763,153.95,153.92,6.49688149]
[1745580405143,27.29726466,153.95,153.92,6.49688149]
[1745580405352,26.0,153.95,153.92,18.37467446]
[1745580406760,13.17505763,153.97,153.93,11.87779297]
[1745580407556,1.29726466,153.97,153.93,11.87779297]
[1745580407755,10.43276646,153.99,153.96,11.87779297]
[1745580408058,22.31055943,153.99,153.94,13.53649297]
[1745580408260,1.29726466,153.98,153.94,13.53649297]
[1745580408559,22.31055943,153.99,153.96,6.49519355]
[1745580410655,1.29726466,153.98,153.96,6.49519355]
[1745580411467,22.31055943,153.99,153.96,6.49519355]
[1745580414962,4.84267963,153.98,153.96,6.49519355]
[1745580415269,13.17505763,153.97,153.92,6.49688149]
[1745580415452,11.87779297,153.94,153.92,6.49688149]
[1745580416886,11.87779297,153.94,153.91,6.49730361]
[1745580418979,4.84927495,153.93,153.91,6.49730361]
[1745580419981,11.87779297,153.94,153.91,6.49730361]
[1745580421282,11.87779297,153.95,153.91,34.61835562]
[1745580421477,4.85066981,153.93,153.91,34.61835562]
[1745580421655,4.85066981,153.93,153.91,22.74056265]
[1745580422184,4.85066981,153.93,153.91,6.49730361]
[1745580422387,18.02572744,153.93,153.91,6.49730361]
[1745580422886,11.87779297,153.94,153.91,6.49730361]
[1745580423271,11.87779297,153.95,153.91,18.37509658]
[1745580423661,4.85040156,153.94,153.93,11.87779297]
[1745580424080,10.43276646,153.99,153.93,11.87779297]
[1745580424260,0.03,153.99,153.98,11.87779297]
[1745580426381,0.03,153.99,153.98,18.37214288]
[1745580427461,0.03,153.99,153.98,6.49434991]
[1745580428599,0.03,153.99,153.96,16.23773457]
[1745580428772,11.90779297,153.99,153.95,6.49561545]
[1745580428966,11.90779297,153.99,153.95,34.61244706]
[1745580429167,0.03,153.99,153.96,11.87779297]
[1745580429494,0.03,153.99,153.97,11.87779297]
[1745580429800,0.03,153.99,153.98,11.87779297]
[1745580430379,1e-08,153.99,153.98,13.17629473]
[1745580431108,1e-08,153.99,153.98,19.67064464]
[1745580431985,1e-08,153.99,153.98,26.43370621]
[1745580432188,1e-08,154.02,153.99,18.79181043]
[1745580432381,1e-08,154.02,154.01,12.01995454]
[1745580433090,1e-08,154.02,154.01,18.5130394]
[1745580437406,0.03,154.06,154.01,111.86082474]
[1745580437586,0.03,154.06,154.05,11.87779297]
[1745580437791,0.03,154.06,154.03,1.29795054]
[1745580438100,0.03,154.06,154.05,11.87779297]
[1745580440078,0.03,154.06,154.05,19.96579186]
[1745580441606,0.03,154.06,154.05,20.10795343]
[1745580442282,0.03,154.08,154.06,0.14216157]
[1745580442510,0.03,154.08,154.07,13.1754592]
[1745580443782,0.03,154.08,154.07,19.66601544]
[1745580443982,0.03,154.08,154.07,18.36834921]
[1745580446113,7.943,154.06,153.89,8.2095]
[1745580446319,11.87779297,153.97,153.92,11.87779297]
[1745580446491,11.87779297,153.96,153.92,11.87779297]
[1745580446707,13.17505763,153.95,153.91,11.87779297]
[1745580446900,13.17505763,153.95,153.9,6.49772579]
[1745580447107,13.17505763,153.95,153.9,18.37551876]
[1745580447324,13.17505763,153.95,153.91,11.87779297]
[1745580447614,11.87779297,153.96,153.91,11.87779297]
[1745580449214,11.87779297,153.96,153.91,18.37485626]
[1745580450533,1.29726466,153.95,153.91,18.37485626]
[1745580450925,13.17505763,153.95,153.91,18.37485626]
[1745580451130,1.29726466,153.95,153.91,18.37485626]
[1745580451322,11.87779297,153.97,153.92,11.87779297]
[1745580451633,13.17505763,153.98,153.94,11.87779297]
[1745580451813,11.87779297,153.97,153.93,11.87779297]
[1745580452137,11.87779297,153.97,153.92,11.87779297]
[1745580452507,27.29726466,153.98,153.93,11.87779297]
[1745580452721,11.87779297,153.97,153.93,11.87779297]
[1745580452918,11.87779297,153.97,153.93,18.37397689]
[1745580453516,11.87779297,153.97,153.93,6.49618392]
[1745580454232,27.29726466,153.98,153.93,18.37397689]
[1745580454432,37.87779297,153.98,153.93,18.37397689]
[1745580454941,11.87779297,153.96,153.93,6.49618392]
[1745580456033,11.87779297,153.96,153.91,28.1207483]
[1745580456233,1.29726466,153.97,153.91,28.1207483]
[1745580456443,11.87779297,153.96,153.91,28.1207483]
[1745580457350,13.17505763,153.97,153.92,11.87779297]
[1745580458240,11.87779297,153.96,153.93,6.49645942]
[1745580460238,11.87779297,153.95,153.93,6.49645942]
[1745580460626,11.87779297,153.95,153.92,6.49688149]
[1745580460926,11.87779297,153.96,153.92,18.37467446]
[1745580461739,11.87779297,153.96,153.92,34.6168782]
[1745580461940,13.17505763,153.97,153.93,11.87779297]
[1745580462440,1.29726466,153.97,153.93,11.87779297]
[1745580462739,37.87779297,153.98,153.94,11.87779297]
[1745580462938,11.87779297,153.98,153.95,6.49561545]
[1745580463147,1.29726466,154.02,153.97,11.87779297]
[1745580463447,11.87779297,154.01,153.97,11.87779297]
[1745580463619,11.87779297,154.01,153.96,11.87779297]
[1745580463823,11.87779297,154.0,153.96,11.87779297]
[1745580465128,11.87779297,154.0,153.97,6.4947717]
[1745580467037,11.87779297,154.0,153.97,22.73170097]
[1745580467237,26.0,154.01,153.97,22.73170097]
[1745580467441,37.87779297,154.01,153.97,22.73170097]
[1745580467822,11.87779297,154.0,153.97,6.4947717]
[1745580468641,26.0,154.01,153.97,6.4947717]
[1745580468850,11.87779297,154.0,153.97,6.4947717]
[1745580469146,26.0,154.01,153.96,6.49519355]
[1745580469351,11.87779297,154.0,153.96,6.49519355]
[1745580470219,26.0,154.01,153.96,34.61097041]
[1745580470418,26.0,154.01,153.97,11.87779297]
[1745580470625,11.87779297,154.0,153.96,34.61097041]
[1745580472445,11.87779297,154.0,153.96,22.73317744]